bitfinex/quotes_BTCUSD_20240828
["timestamp","ask_amount","ask_price","bid_price","bid_amount"]
[1724824692009,0.53671681,59488.0,59487.0,1.8135308]
[1724824692398,0.53671681,59488.0,59487.0,1.57177791]
[1724824694178,0.53671681,59488.0,59487.0,1.4543238]
[1724824696759,0.53671681,59488.0,59487.0,1.1181168]
[1724824700438,0.53671681,59488.0,59487.0,0.7819098]
[1724824701162,0.53671681,59488.0,59487.0,0.2775998]
[1724824701402,0.70481781,59488.0,59487.0,0.1583998]
[1724824701861,1.47722181,59488.0,59487.0,0.0008998]
[1724824702091,1.65055972,59488.0,59487.0,0.0008998]
[1724824702303,1.60022181,59488.0,59487.0,0.0008998]
[1724824702515,1.67572868,59488.0,59487.0,0.0008998]
[1724824703182,1.96276499,59488.0,59487.0,0.0008998]
[1724824703407,2.55366499,59488.0,59487.0,0.0008998]
[1724824703624,2.70467873,59488.0,59487.0,0.0008998]
[1724824703857,2.55366499,59488.0,59487.0,0.0008998]
[1724824704278,2.36848371,59488.0,59487.0,0.0008998]
[1724824704497,2.27758371,59488.0,59487.0,0.0008998]
[1724824705643,2.61378571,59488.0,59487.0,0.0008998]
[1724824708411,2.61377646,59488.0,59487.0,0.0008998]
[1724824708871,2.55366499,59488.0,59487.0,0.0008998]
[1724824709471,2.55866499,59488.0,59487.0,0.0008998]
[1724824710163,2.7285529,59488.0,59487.0,0.0008998]
[1724824710541,2.55866499,59488.0,59487.0,0.0008998]
[1724824710753,2.7285529,59488.0,59487.0,0.0008998]
[1724824710957,2.55866499,59488.0,59487.0,0.0008998]
[1724824712032,2.89486699,59488.0,59487.0,0.0008998]
[1724824713065,3.0647549,59488.0,59487.0,0.0008998]
[1724824716322,2.9738549,59488.0,59487.0,0.0008998]
[1724824717869,2.97388655,59488.0,59487.0,0.0008998]
[1724824718067,2.80396699,59488.0,59487.0,0.0008998]
[1724824718467,2.97388655,59488.0,59487.0,0.0008998]
[1724824718680,2.80396699,59488.0,59487.0,0.0008998]
[1724824719337,1.21779872,59483.0,59482.0,0.12118396]
[1724824719537,1.82210872,59483.0,59482.0,0.12118396]
[1724824719754,1.82645407,59483.0,59482.0,0.12118396]
[1724824720231,1.85279801,59483.0,59482.0,0.12118396]
[1724824720435,1.82645407,59483.0,59482.0,0.12118396]
[1724824720972,1.791026,59482.0,59481.0,0.0008998]
[1724824721182,2.4216807,59482.0,59481.0,0.0008998]
[1724824721617,2.42602605,59482.0,59481.0,0.0008998]
[1724824721829,2.45240197,59482.0,59481.0,0.0008998]
[1724824726766,2.33820197,59482.0,59481.0,0.0008998]
[1724824726972,2.31185727,59482.0,59481.0,0.1428998]
[1724824727173,2.33820202,59482.0,59481.0,0.1428998]
[1724824727817,2.43769547,59482.0,59481.0,0.1428998]
[1724824728022,2.31185727,59482.0,59481.0,0.1428998]
[1724824728613,2.4376927,59482.0,59481.0,0.1428998]
[1724824728823,2.33820187,59482.0,59481.0,0.1428998]
[1724824731180,2.33799955,59482.0,59481.0,0.1428998]
[1724824731749,2.4638187,59482.0,59481.0,0.1428998]
[1724824732164,2.46381593,59482.0,59481.0,0.1428998]
[1724824732561,1.62839793,59482.0,59481.0,0.2506998]
[1724824732765,1.50258155,59482.0,59481.0,0.2506998]
[1724824732969,1.62839793,59482.0,59481.0,0.2506998]
[1724824734207,1.96463393,59482.0,59481.0,0.0008998]
[1724824734417,2.74010165,59482.0,59481.0,0.0008998]
[1724824734623,2.74010165,59482.0,59481.0,0.1354998]
[1724824734624,2.00258155,59482.0,59481.0,0.1354998]
[1724824735129,2.33881755,59482.0,59481.0,0.1354998]
[1724824735543,2.52371755,59482.0,59481.0,0.0008998]
[1724824735745,2.45351755,59482.0,59481.0,0.0008998]
[1724824736151,2.34381755,59482.0,59481.0,0.0008998]
[1724824736368,2.33881755,59482.0,59481.0,0.0008998]
[1724824736503,2.34381755,59482.0,59481.0,0.0008998]
[1724824736710,2.52891755,59482.0,59481.0,0.0008998]
[1724824736907,2.82260165,59482.0,59481.0,0.0008998]
[1724824737106,2.99240161,59482.0,59481.0,0.0008998]
[1724824737316,2.69871751,59482.0,59481.0,0.0008998]
[1724824737496,2.99240161,59482.0,59481.0,0.0008998]
[1724824737695,2.82260165,59482.0,59481.0,0.0008998]
[1724824737936,2.99241268,59482.0,59481.0,0.0008998]
[1724824738122,2.82260165,59482.0,59481.0,0.0008998]
[1724824738334,3.15883765,59482.0,59481.0,0.0008998]
[1724824738530,3.19598912,59482.0,59481.0,0.0008998]
[1724824738707,3.19598908,59482.0,59481.0,0.0008998]
[1724824739128,3.21179714,59482.0,59481.0,0.0008998]
[1724824739718,3.21179714,59482.0,59472.0,0.0008998]
[1724824739719,2.05928472,59473.0,59472.0,0.0008998]
[1724824739917,3.04007882,59473.0,59472.0,0.0008998]
[1724824740130,3.16642342,59473.0,59472.0,0.0008998]
[1724824740344,3.20854596,59473.0,59472.0,0.0008998]
[1724824740552,3.19777116,59473.0,59472.0,0.0008998]
[1724824740767,3.12757116,59473.0,59472.0,0.0008998]
[1724824740979,2.86148416,59473.0,59472.0,0.0008998]
[1724824742528,3.23494806,59473.0,59472.0,0.0008998]
[1724824742798,2.9235269,59473.0,59472.0,0.0008998]
[1724824743067,2.92352693,59473.0,59472.0,0.0008998]
[1724824743495,3.222637,59473.0,59472.0,0.0008998]
[1724824743705,2.88635,59473.0,59472.0,0.0008998]
[1724824744128,2.923527,59473.0,59472.0,0.0008998]
[1724824744371,2.81615,59473.0,59472.0,0.0008998]
[1724824744601,2.79128416,59473.0,59472.0,0.0008998]
[1724824744861,2.38500006,59473.0,59472.0,0.0008998]
[1724824747317,2.67868416,59473.0,59472.0,0.0008998]
[1724824749428,2.86328416,59473.0,59472.0,0.0008998]
[1724824749885,2.79248416,59473.0,59472.0,0.0008998]
[1724824750976,2.49880006,59473.0,59472.0,0.0008998]
[1724824752065,2.51639169,59473.0,59472.0,0.0008998]
[1724824752285,2.54100276,59473.0,59472.0,0.0008998]
[1724824752698,2.42720276,59473.0,59472.0,0.0008998]
[1724824754283,2.42720276,59473.0,59472.0,0.2535998]
[1724824754284,1.46130469,59473.0,59472.0,0.2535998]
[1724824755732,1.56130469,59473.0,59472.0,0.2535998]
[1724824755926,1.89759169,59473.0,59472.0,0.2535998]
[1724824756176,1.56130469,59473.0,59472.0,0.2535998]
[1724824756380,1.89759169,59473.0,59472.0,0.2535998]
[1724824756584,1.56130469,59473.0,59472.0,0.2535998]
[1724824757582,1.73132267,59473.0,59472.0,0.2535998]
[1724824757903,1.89759169,59473.0,59472.0,0.2535998]
[1724824758358,1.73132833,59473.0,59472.0,0.2535998]
[1724824758564,1.89759169,59473.0,59472.0,0.2535998]
[1724824758951,2.06761533,59473.0,59472.0,0.2535998]
[1724824759150,2.39759169,59473.0,59472.0,0.2535998]
[1724824759532,2.56761533,59473.0,59472.0,0.2535998]
[1724824761578,2.39759169,59473.0,59472.0,0.2535998]
[1724824761845,2.56761533,59473.0,59472.0,0.2535998]
[1724824762046,2.68522449,59473.0,59472.0,0.2535998]
[1724824762335,2.51520085,59473.0,59472.0,0.2535998]
[1724824763453,1.18402397,59473.0,59472.0,0.2535998]
[1724824763640,0.84773697,59473.0,59472.0,0.2535998]
[1724824763993,0.82139237,59473.0,59472.0,0.2535998]
[1724824764197,0.55324937,59473.0,59472.0,0.2535998]
[1724824764379,0.65402856,59473.0,59472.0,0.2535998]
[1724824767172,0.82217156,59473.0,59472.0,0.2535998]
[1724824768060,1.420314,59473.0,59472.0,0.1364998]
[1724824768270,2.0077673,59473.0,59472.0,0.1364998]
[1724824768519,1.856601,59473.0,59472.0,0.1364998]
[1724824771169,0.840772,59469.0,59468.0,0.0987088]
[1724824771407,0.168168,59465.0,59460.0,0.5449268]
[1724824771636,0.55470327,59464.0,59460.0,0.16818]
[1724824771862,0.55470327,59464.0,59446.0,0.4705]
[1724824771863,0.00495188,59463.0,59461.0,0.168176]
[1724824772088,0.00495188,59463.0,59461.0,0.168177]
[1724824772089,0.50431,59462.0,59461.0,0.168177]
[1724824772312,0.50431,59462.0,59461.0,0.2522682]
[1724824772313,0.5092471,59462.0,59461.0,0.2522682]
[1724824772598,0.5092471,59462.0,59458.0,0.168183]
[1724824772833,0.5092471,59462.0,59459.0,0.168182]
[1724824773062,0.5092471,59462.0,59454.0,0.345389]
[1724824773063,0.5092471,59462.0,59458.0,0.168185]
[1724824774233,0.5092471,59462.0,59459.0,0.1338]
[1724824774445,0.5092471,59462.0,59460.0,0.1135]
[1724824774666,0.5092471,59462.0,59461.0,0.1338]
[1724824775092,0.5092471,59462.0,59461.0,0.248]
[1724824776972,0.5092471,59462.0,59461.0,0.416177]
[1724824777677,0.50431,59462.0,59461.0,0.248]
[1724824777901,0.50925839,59462.0,59461.0,0.248]
[1724824780880,0.50925839,59462.0,59461.0,0.416177]
[1724824781124,0.50925839,59462.0,59461.0,0.248]
[1724824781384,0.51007639,59462.0,59461.0,0.248]
[1724824781648,0.56052002,59462.0,59461.0,0.248]
[1724824781872,0.51007639,59462.0,59461.0,0.248]
[1724824782084,0.56052002,59462.0,59461.0,0.248]
[1724824782763,0.51007639,59462.0,59461.0,0.248]
[1724824783249,0.56052237,59462.0,59461.0,0.248]
[1724824783682,0.56052342,59462.0,59461.0,0.248]
[1724824783905,0.51007639,59462.0,59461.0,0.248]
[1724824784120,0.56052347,59462.0,59461.0,0.248]
[1724824784579,0.56052347,59462.0,59461.0,0.416177]
[1724824784798,0.56032112,59462.0,59461.0,0.416177]
[1724824785008,0.50987404,59462.0,59461.0,0.416177]
[1724824785663,0.50987404,59462.0,59461.0,0.248]
[1724824785912,0.58554132,59462.0,59461.0,0.248]
[1724824786129,0.50987404,59462.0,59461.0,0.248]
[1724824786341,0.58554132,59462.0,59461.0,0.248]
[1724824786994,0.58554132,59462.0,59461.0,0.1338]
[1724824787438,1.14050917,59462.0,59461.0,0.1338]
[1724824787650,1.04074744,59462.0,59461.0,0.1338]
[1724824788312,0.50454,59460.0,59459.0,0.0008998]
[1724824788542,1.48435805,59460.0,59459.0,0.0008998]
[1724824788757,1.48930787,59460.0,59459.0,0.0008998]
[1724824788982,1.5068995,59460.0,59459.0,0.0008998]
[1724824789828,1.6068995,59460.0,59459.0,0.0008998]
[1724824794246,1.1575395,59460.0,59459.0,0.1465998]
[1724824794448,1.1311891,59460.0,59459.0,0.1465998]
[1724824795303,0.7948291,59460.0,59459.0,0.1465998]
[1724824795506,1.1311891,59460.0,59459.0,0.1465998]
[1724824795913,1.25729523,59460.0,59459.0,0.1465998]
[1724824796445,1.25729523,59460.0,59459.0,0.17261978]
[1724824796446,0.75275523,59460.0,59459.0,0.17261978]
[1724824796689,0.6266491,59460.0,59459.0,0.17261978]
[1724824796956,0.5266491,59460.0,59459.0,0.1465998]
[1724824797182,0.62753756,59460.0,59459.0,0.1465998]
[1724824797407,0.62753756,59460.0,59459.0,0.3147828]
[1724824797634,0.62753815,59460.0,59459.0,0.39125928]
[1724824798285,0.79571815,59460.0,59459.0,0.1465998]
[1724824798472,1.0311891,59460.0,59459.0,0.1465998]
[1724824798930,0.6948291,59460.0,59459.0,0.1465998]
[1724824799133,0.79572887,59460.0,59459.0,0.1465998]
[1724824799345,0.5266491,59460.0,59459.0,0.1465998]
[1724824799856,0.62754925,59460.0,59459.0,0.1465998]
[1724824800085,0.5266491,59460.0,59459.0,0.1465998]
[1724824800322,0.5266491,59460.0,59459.0,0.1462498]
[1724824800568,0.65277509,59460.0,59459.0,0.1462498]
[1724824800790,0.5266491,59460.0,59459.0,0.1462498]
[1724824801592,0.63517897,59460.0,59459.0,0.1462498]
[1724824801814,0.50905747,59460.0,59459.0,0.1462498]
[1724824802027,0.67723747,59460.0,59459.0,0.1462498]
[1724824802237,1.01359747,59460.0,59459.0,0.1462498]
[1724824802851,1.01359747,59460.0,59459.0,0.16087478]
[1724824803066,1.03994897,59460.0,59459.0,0.1462498]
[1724824804360,1.37630897,59460.0,59459.0,0.1462498]
[1724824805002,1.37630897,59460.0,59459.0,0.0005498]
[1724824807321,1.03994897,59460.0,59459.0,0.0005498]
[1724824808299,0.168188,59457.0,59456.0,0.12421663]
[1724824808508,0.77317343,59457.0,59456.0,0.16647829]
[1724824808714,1.10955043,59457.0,59456.0,0.12421663]
[1724824810520,1.00867265,59457.0,59456.0,0.12421663]
[1724824810721,0.50410765,59457.0,59456.0,0.37255372]
[1724824810923,0.5304888,59457.0,59456.0,0.37255372]
[1724824811249,0.6986768,59457.0,59456.0,0.41070889]
[1724824811583,0.6986768,59457.0,59456.0,0.2930718]
[1724824811834,0.5304888,59457.0,59456.0,0.2930718]
[1724824812047,0.6986768,59457.0,59456.0,0.2930718]
[1724824812410,0.79957898,59457.0,59456.0,0.2930718]
[1724824812606,0.6986768,59457.0,59456.0,0.2930718]
[1724824812928,0.5304888,59457.0,59456.0,0.2930718]
[1724824813128,0.6986768,59457.0,59456.0,0.2930718]
[1724824813326,0.5304888,59457.0,59456.0,0.2930718]
[1724824813533,0.5304888,59457.0,59456.0,0.4612628]
[1724824813759,0.5304888,59457.0,59456.0,0.2930718]
[1724824813966,0.5304888,59457.0,59456.0,0.4612628]
[1724824814624,0.5304888,59457.0,59456.0,1.1340288]
[1724824814824,0.5304888,59457.0,59456.0,1.4704118]
[1724824815068,0.5304888,59457.0,59456.0,2.10083015]
[1724824815251,0.5304888,59457.0,59456.0,2.12383015]
[1724824816440,0.5304888,59457.0,59456.0,2.12883015]
[1724824816846,0.5304888,59457.0,59456.0,2.15374188]
[1724824817691,0.53521978,59457.0,59456.0,2.15374188]
[1724824819251,0.53521978,59457.0,59456.0,2.15464168]
[1724824819751,0.53521978,59457.0,59456.0,2.11148651]
[1724824819956,0.53521978,59457.0,59456.0,1.75210351]
[1724824820213,0.53521978,59457.0,59456.0,1.09677343]
[1724824820903,0.53521978,59457.0,59456.0,1.39080878]
[1724824821124,0.53521978,59457.0,59456.0,1.72719178]
[1724824821560,0.5304888,59457.0,59456.0,1.72719178]
[1724824821784,0.53528303,59457.0,59456.0,1.89574342]
[1724824828673,0.53528303,59457.0,59456.0,2.26012642]
[1724824828885,0.53528303,59457.0,59456.0,1.92374342]
[1724824829113,0.5304888,59457.0,59456.0,1.92374342]
[1724824829365,0.53528303,59457.0,59456.0,1.92374342]
[1724824830284,0.53528303,59457.0,59456.0,2.26012642]
[1724824830997,0.433772,59457.0,59456.0,2.26012642]
[1724824831218,0.433772,59457.0,59456.0,2.63023942]
[1724824831438,0.42897777,59457.0,59456.0,2.63023942]
[1724824832154,0.4189236,59457.0,59456.0,2.63023942]
[1724824833841,0.4197416,59457.0,59456.0,2.63023942]
[1724824834912,0.000818,59460.0,59459.0,1.808847]
[1724824835143,0.000818,59460.0,59459.0,1.831847]
[1724824835361,0.02719351,59460.0,59459.0,1.830847]
[1724824836000,0.02719351,59460.0,59459.0,2.167213]
[1724824837346,0.02819351,59460.0,59459.0,2.174213]
[1724824837545,0.02819351,59460.0,59459.0,2.34276464]
[1724824838240,0.02819351,59460.0,59459.0,2.35676464]
[1724824838456,0.02919351,59460.0,59459.0,2.35676464]
[1724824838891,0.02899108,59460.0,59459.0,2.35676464]
[1724824839106,0.01759163,59469.0,59468.0,0.168157]
[1724824839314,0.01759163,59469.0,59468.0,1.43648482]
[1724824839529,0.001819,59489.0,59468.0,1.43648482]
[1724824839530,0.1296,59487.0,59479.0,0.840632]
[1724824839735,0.1296,59487.0,59479.0,1.29836735]
[1724824839937,0.1296,59487.0,59479.0,1.63462035]
[1724824840141,0.1296,59487.0,59479.0,1.80317199]
[1724824840343,0.1306,59487.0,59479.0,1.80317199]
[1724824840569,0.001,59484.0,59479.0,1.80217199]
[1724824840779,0.001,59484.0,59479.0,1.80117199]
[1724824841220,0.001,59486.0,59479.0,1.80117199]
[1724824841429,0.010818,59480.0,59479.0,1.80217199]
[1724824841859,0.136718,59480.0,59479.0,0.839632]
[1724824842298,0.14162556,59480.0,59479.0,0.839632]
[1724824842498,0.1679958,59480.0,59479.0,0.839632]
[1724824843128,0.1679958,59480.0,59479.0,1.175885]
[1724824843540,0.1679958,59480.0,59479.0,1.3088235]
[1724824843742,0.0420958,59480.0,59479.0,1.3088235]
[1724824843956,0.0420958,59480.0,59479.0,0.9725705]
[1724824844677,0.3341958,59480.0,59479.0,0.001]
[1724824845152,0.5023188,59480.0,59479.0,0.001]
[1724824845382,0.337056,59482.0,59481.0,1.176843]
[1724824845383,0.000818,59482.0,59481.0,1.176843]
[1724824845597,0.000818,59482.0,59481.0,1.340243]
[1724824845810,0.02718784,59482.0,59481.0,1.340243]
[1724824846018,0.02718784,59482.0,59481.0,1.50879464]
[1724824846297,0.02718784,59482.0,59479.0,0.001]
[1724824846509,0.14618784,59482.0,59479.0,0.001]
[1724824846726,0.14618784,59482.0,59471.0,0.1634]
[1724824846727,0.14618784,59482.0,59481.0,0.005]
[1724824846928,0.14718784,59482.0,59481.0,0.013]
[1724824847140,0.14618784,59482.0,59481.0,0.005]
[1724824847351,0.14618784,59482.0,59481.0,0.17312]
[1724824847562,0.15118784,59482.0,59481.0,0.17312]
[1724824847769,0.14618784,59482.0,59481.0,0.16812]
[1724824848238,0.124818,59482.0,59481.0,0.18112]
[1724824848451,0.280218,59482.0,59481.0,0.18112]
[1724824848659,0.30658909,59482.0,59481.0,0.18112]
[1724824849088,0.47770709,59482.0,59481.0,0.013]
[1724824849306,0.81394309,59482.0,59481.0,0.013]
[1724824849514,0.81094309,59482.0,59481.0,0.013]
[1724824849937,0.81494309,59482.0,59481.0,0.013]
[1724824850163,1.14417909,59482.0,59481.0,0.013]
[1724824850370,1.14217909,59482.0,59481.0,0.013]
[1724824850594,1.14517909,59482.0,59481.0,0.013]
[1724824850837,1.14917909,59482.0,59481.0,0.013]
[1724824852748,1.15370146,59482.0,59481.0,0.013]
[1724824854215,0.03871146,59482.0,59481.0,0.81139635]
[1724824854434,0.03871146,59482.0,59481.0,0.90868599]
[1724824854665,0.03418909,59482.0,59481.0,0.61465064]
[1724824855116,0.17958909,59482.0,59481.0,0.013]
[1724824855349,0.30268909,59482.0,59481.0,0.013]
[1724824855565,0.30904018,59482.0,59481.0,0.013]
[1724824856267,0.30504018,59482.0,59481.0,0.013]
[1724824856493,0.30304018,59482.0,59481.0,0.013]
[1724824856736,0.30504018,59482.0,59481.0,0.16812]
[1724824856960,0.30704018,59482.0,59480.0,0.168123]
[1724824857391,0.30704018,59482.0,59478.0,0.336256]
[1724824857392,0.30904018,59482.0,59478.0,0.336256]
[1724824857563,0.30704018,59482.0,59478.0,0.336256]
[1724824857776,0.30704018,59482.0,59476.0,0.336266]
[1724824857985,0.30804018,59482.0,59480.0,0.168122]
[1724824858156,0.30804018,59482.0,59480.0,0.168123]
[1724824858361,0.30804018,59482.0,59477.0,0.336262]
[1724824858743,0.30404018,59482.0,59478.0,0.168129]
[1724824858969,0.30504018,59482.0,59476.0,0.0827048]
[1724824859203,0.30404018,59482.0,59477.0,0.16813]
[1724824860368,0.30304018,59482.0,59478.0,0.168129]
[1724824860593,0.30304018,59482.0,59477.0,0.0995181]
[1724824860827,0.125,59481.0,59470.0,0.336301]
[1724824861045,0.168132,59477.0,59470.0,0.67355786]
[1724824861259,0.168132,59477.0,59469.0,0.806809]
[1724824861484,0.168132,59477.0,59471.0,0.168148]
[1724824861732,0.03071619,59476.0,59471.0,0.168148]
[1724824861946,0.03071619,59476.0,59472.0,0.168145]
[1724824863106,0.03071619,59476.0,59471.0,0.002]
[1724824863318,0.03071619,59476.0,59470.0,0.336301]
[1724824863531,0.50443,59475.0,59470.0,0.16815]
[1724824863787,0.50443,59475.0,59472.0,0.002]
[1724824863997,0.0043429,59474.0,59472.0,0.002]
[1724824864224,0.50443,59473.0,59472.0,0.002]
[1724824864709,0.5087729,59473.0,59472.0,0.002]
[1724824865142,0.5087729,59473.0,59471.0,0.168147]
[1724824866011,0.5087729,59473.0,59472.0,0.003]
[1724824866436,0.5087729,59473.0,59471.0,0.174147]
[1724824866664,0.5097729,59473.0,59471.0,0.180147]
[1724824866902,0.5097729,59473.0,59472.0,0.168146]
[1724824867124,0.5087729,59473.0,59472.0,0.006]
[1724824867370,0.5097729,59473.0,59472.0,0.012]
[1724824867638,0.5087729,59473.0,59472.0,0.006]
[1724824868083,0.5097729,59473.0,59472.0,0.006]
[1724824868300,1.70491782,59473.0,59472.0,0.006]
[1724824868523,0.295046,59472.0,59471.0,0.006]
[1724824868754,1.24082509,59472.0,59471.0,0.012]
[1724824868983,1.47639265,59472.0,59471.0,0.012]
[1724824869212,1.47639265,59472.0,59471.0,0.006]
[1724824869476,0.504456,59470.0,59469.0,0.0008998]
[1724824869687,1.008886,59470.0,59469.0,0.0008998]
[1724824869916,1.64401533,59470.0,59469.0,0.0008998]
[1724824870146,1.67039243,59470.0,59469.0,0.0008998]
[1724824870360,1.77114054,59470.0,59469.0,0.0008998]
[1724824870594,2.27599618,59470.0,59469.0,0.0008998]
[1724824870798,2.1928397,59470.0,59469.0,0.0008998]
[1724824871006,2.22218755,59470.0,59469.0,0.0008998]
[1724824871252,2.05063591,59470.0,59469.0,0.0008998]
[1724824871909,2.15063591,59470.0,59469.0,0.0008998]
[1724824872121,2.12928806,59470.0,59469.0,0.0008998]
[1724824873232,2.13228806,59470.0,59469.0,0.0018998]
[1724824873446,2.13328806,59470.0,59469.0,0.0018998]
[1724824873916,2.14628806,59470.0,59469.0,0.0028998]
[1724824874373,1.80998406,59470.0,59469.0,0.0028998]
[1724824874618,1.79698406,59470.0,59469.0,0.0018998]
[1724824875042,1.79898406,59470.0,59469.0,0.0018998]
[1724824875314,1.92473791,59470.0,59469.0,0.0018998]
[1724824875542,2.14728806,59470.0,59469.0,0.0028998]
[1724824875755,2.27303855,59470.0,59469.0,0.0028998]
[1724824875970,2.26103855,59470.0,59469.0,0.0018998]
[1724824876175,2.27103855,59470.0,59469.0,0.0028998]
[1724824877299,2.14528806,59470.0,59469.0,0.0028998]
[1724824883475,2.15028806,59470.0,59469.0,0.0028998]
[1724824883665,2.50959206,59470.0,59469.0,0.0028998]
[1724824884150,2.53594392,59470.0,59469.0,0.0028998]
[1724824884383,2.51494392,59470.0,59469.0,0.0008998]
[1724824884615,2.20363992,59470.0,59469.0,0.0018998]
[1724824885102,2.53994392,59470.0,59469.0,0.0018998]
[1724824885545,2.20363992,59470.0,59469.0,0.0018998]
[1724824886193,2.53994392,59470.0,59469.0,0.0018998]
[1724824886415,2.20363992,59470.0,59469.0,0.0018998]
[1724824886628,2.17563992,59470.0,59469.0,0.0018998]
[1724824889251,2.14928806,59470.0,59469.0,0.0018998]
[1724824889643,2.175638,59470.0,59469.0,0.0018998]
[1724824895423,2.34418964,59470.0,59469.0,0.0018998]
[1724824896081,2.29325856,59470.0,59469.0,0.0018998]
[1724824898648,1.544834,59470.0,59469.0,0.0018998]
[1724824898876,1.59384021,59470.0,59469.0,0.1756998]
[1724824899092,1.56872532,59470.0,59469.0,0.3134998]
[1724824899319,1.51848406,59470.0,59469.0,0.3134998]
[1724824899769,1.65848406,59470.0,59469.0,0.0018998]
[1724824899981,1.99478806,59470.0,59469.0,0.0018998]
[1724824900224,2.12161678,59470.0,59469.0,0.0018998]
[1724824900879,1.99478806,59470.0,59469.0,0.0018998]
[1724824901087,2.02113568,59470.0,59469.0,0.0018998]
[1724824901738,2.12165899,59470.0,59469.0,0.0018998]
[1724824901960,2.14678931,59470.0,59469.0,0.0018998]
[1724824902143,2.14678931,59470.0,59469.0,0.1844998]
[1724824902144,1.30904571,59470.0,59469.0,0.1844998]
[1724824902411,1.23244459,59470.0,59469.0,0.1844998]
[1724824902631,1.51848406,59470.0,59469.0,0.1844998]
[1724824903084,1.18218006,59470.0,59469.0,0.1844998]
[1724824903291,1.18218006,59470.0,59469.0,0.1834998]
[1724824903292,1.22044967,59470.0,59469.0,0.1834998]
[1724824903509,1.18218006,59470.0,59469.0,0.1844998]
[1724824903733,1.28392769,59470.0,59469.0,0.1844998]
[1724824903938,1.28392769,59470.0,59469.0,0.1834998]
[1724824903939,1.2589468,59470.0,59469.0,0.1834998]
[1724824904376,1.2669468,59470.0,59469.0,0.1834998]
[1724824904615,1.19152614,59470.0,59469.0,0.1834998]
[1724824904833,1.19852614,59470.0,59469.0,0.1844998]
[1724824905240,1.27396851,59470.0,59469.0,0.1844998]
[1724824905687,0.93766451,59470.0,59469.0,0.1844998]
[1724824905964,1.27396851,59470.0,59469.0,0.1844998]
[1724824906196,1.52783014,59470.0,59469.0,0.1834998]
[1724824906404,1.53483014,59470.0,59469.0,0.1844998]
[1724824906828,0.69468438,59470.0,59469.0,0.33914978]
[1724824907033,0.56772406,59470.0,59469.0,0.84361278]
[1724824907237,0.61803303,59470.0,59469.0,0.84361278]
[1724824907448,0.56772406,59470.0,59469.0,0.84361278]
[1724824907912,0.56072406,59470.0,59469.0,1.17892178]
[1724824908144,0.55272406,59470.0,59469.0,1.17892178]
[1724824908616,0.55572406,59470.0,59469.0,1.17892178]
[1724824908830,0.55572406,59470.0,59469.0,0.8241628]
[1724824909044,0.89202806,59470.0,59469.0,0.3196998]
[1724824909252,0.89202806,59470.0,59469.0,0.1834998]
[1724824909253,1.06018006,59470.0,59469.0,0.1834998]
[1724824909928,1.39348406,59470.0,59469.0,0.1834998]
[1724824910135,1.05718006,59470.0,59469.0,0.1834998]
[1724824910339,1.13265422,59470.0,59469.0,0.1834998]
[1724824910541,1.13465422,59470.0,59469.0,0.1834998]
[1724824911170,1.13665422,59470.0,59469.0,0.1834998]
[1724824912265,1.06118006,59470.0,59469.0,0.1834998]
[1724824914338,1.16187608,59470.0,59469.0,0.1834998]
[1724824916346,1.06118006,59470.0,59469.0,0.1834998]
[1724824917706,1.06118006,59470.0,59469.0,0.3220998]
[1724824919333,0.55672406,59470.0,59469.0,0.3220998]
[1724824919540,0.63227443,59470.0,59469.0,0.3220998]
[1724824919975,0.55672406,59470.0,59469.0,0.3220998]
[1724824920200,0.60709005,59470.0,59469.0,0.3220998]
[1724824920398,0.60508931,59470.0,59469.0,0.3220998]
[1724824920583,0.55472406,59470.0,59469.0,0.3220998]
[1724824921065,0.60709453,59470.0,59469.0,0.57291218]
[1724824921351,0.60709453,59470.0,59469.0,1.24553018]
[1724824921352,0.55472406,59470.0,59469.0,1.24553018]
[1724824921564,0.53513243,59470.0,59469.0,1.24553018]
[1724824921787,0.53613243,59470.0,59469.0,1.24553018]
[1724824921999,0.53713243,59470.0,59469.0,1.1628718]
[1724824922448,0.53713243,59470.0,59469.0,1.4991808]
[1724824922884,0.33132072,59470.0,59469.0,1.8634898]
[1724824923124,0.32699539,59470.0,59469.0,1.8634898]
[1724824923335,0.32599539,59470.0,59469.0,1.8634898]
[1724824923549,0.32599539,59470.0,59469.0,2.03204144]
[1724824923993,0.32699539,59470.0,59469.0,2.03804144]
[1724824924212,0.32799539,59470.0,59469.0,2.03804144]
[1724824924664,0.32799539,59470.0,59469.0,2.03204144]
[1724824924665,0.32599539,59470.0,59469.0,2.03204144]
[1724824924846,0.32799539,59470.0,59469.0,2.03904144]
[1724824925338,0.32799539,59470.0,59469.0,2.02312548]
[1724824926193,0.32599539,59470.0,59469.0,2.01612548]
[1724824926411,0.32599539,59470.0,59469.0,2.02312548]
[1724824926622,0.32799539,59470.0,59469.0,2.02312548]
[1724824926835,0.32699539,59470.0,59469.0,2.02312548]
[1724824927060,0.32599539,59470.0,59469.0,2.01702528]
[1724824927295,0.32799539,59470.0,59469.0,2.02402528]
[1724824930604,0.30568215,59470.0,59469.0,2.02402528]
[1724824932567,0.30532857,59470.0,59469.0,2.02402528]
[1724824933673,0.0283771,59470.0,59469.0,2.02402528]
[1724824935951,0.000818,59488.0,59479.0,1.491485]
[1724824936155,0.000818,59488.0,59479.0,1.90323336]
[1724824936594,0.02718667,59480.0,59479.0,1.90323336]
[1724824937425,0.02818667,59480.0,59479.0,1.90323336]
[1724824937634,0.02818667,59480.0,59479.0,1.90155184]
[1724824937838,0.02918667,59480.0,59479.0,1.90755184]
[1724824940757,0.02918667,59480.0,59479.0,1.93239]
[1724824942409,0.02918667,59480.0,59479.0,1.38594164]
[1724824942586,0.02918667,59480.0,59479.0,0.68859748]
[1724824942958,0.03343769,59480.0,59479.0,0.68859748]
[1724824947610,0.03343769,59480.0,59479.0,0.50869748]
[1724824949564,0.03343769,59480.0,59479.0,0.68899748]
[1724824949967,0.03343769,59480.0,59479.0,0.80904277]
[1724824949968,0.02918667,59480.0,59479.0,0.80904277]
[1724824950179,0.02898429,59480.0,59479.0,0.80904277]
[1724824951456,0.02898429,59480.0,59479.0,0.80994257]
[1724824952579,0.02898429,59480.0,59479.0,1.14619557]
[1724824953007,0.02898429,59480.0,59479.0,1.29619557]
[1724824953933,0.02898429,59480.0,59479.0,1.63244857]
[1724824954134,0.02898429,59480.0,59479.0,1.29619557]
[1724824955429,0.02898429,59480.0,59479.0,1.63244857]
[1724824955930,0.02898429,59480.0,59479.0,1.63045845]
[1724824956163,0.02898429,59480.0,59479.0,1.62838635]
[1724824956400,0.02898429,59480.0,59479.0,1.29213335]
[1724824959847,0.02898429,59480.0,59479.0,1.62838635]
[1724824962195,0.02898429,59480.0,59479.0,1.74585729]
[1724824964230,0.02898429,59480.0,59479.0,1.73259819]
[1724824973330,0.02898429,59480.0,59479.0,2.07385119]
[1724824973540,0.02898429,59480.0,59479.0,2.09685119]